[Event "Late-Titled-Tuesday-Blitz-February-13-2024"]
[Site "Chess.com"]
[Date "2024.02.13"]
[Round "9"]
[White "ACollins05"]
[Black "Semetey"]
[Result "1-0"]
[WhiteElo "2474"]
[BlackElo "2601"]
[TimeControl "180+1"]
[EndTime "15:44:50 PST"]
[Termination "ACollins05 won by resignation"]

1. d4 {[%clk 0:02:53.2]} 1... d5 {[%clk 0:02:59.3]} 2. c4 {[%clk 0:02:50.7]}
2... e6 {[%clk 0:02:59.3]} 3. Nf3 {[%clk 0:02:50.7]} 3... Nf6 {[%clk 0:02:59.2]}
4. g3 {[%clk 0:02:50.4]} 4... Bb4+ {[%clk 0:02:57.7]} 5. Nbd2 {[%clk 0:02:49.8]}
5... O-O {[%clk 0:02:57]} 6. Bg2 {[%clk 0:02:49.8]} 6... dxc4 {[%clk 0:02:57.2]}
7. Qc2 {[%clk 0:02:50.1]} 7... c5 {[%clk 0:02:55.5]} 8. Qxc4 {[%clk 0:02:45.1]}
8... Nc6 {[%clk 0:02:46.4]} 9. dxc5 {[%clk 0:02:36.2]} 9... Qa5 {[%clk
0:02:40.7]} 10. O-O {[%clk 0:02:21.2]} 10... Qxc5 {[%clk 0:02:40.5]} 11. a3
{[%clk 0:02:17.6]} 11... Qxc4 {[%clk 0:02:36.5]} 12. Nxc4 {[%clk 0:02:18.5]}
12... Be7 {[%clk 0:02:35.4]} 13. Nfe5 {[%clk 0:02:18.5]} 13... Nxe5 {[%clk
0:02:30.5]} 14. Nxe5 {[%clk 0:02:19.4]} 14... Nd7 {[%clk 0:02:30.5]} 15. Nxd7
{[%clk 0:02:16.4]} 15... Bxd7 {[%clk 0:02:30.7]} 16. Bxb7 {[%clk 0:02:17]} 16...
Rab8 {[%clk 0:02:30.8]} 17. Bf3 {[%clk 0:02:17.4]} 17... Bf6 {[%clk 0:02:30.4]}
18. Rb1 {[%clk 0:02:08.2]} 18... Ba4 {[%clk 0:02:29.7]} 19. Be3 {[%clk
0:02:05.5]} 19... Bxb2 {[%clk 0:02:14.9]} 20. Bxa7 {[%clk 0:02:03.2]} 20... Rb3
{[%clk 0:02:14.6]} 21. Bc5 {[%clk 0:01:54.5]} 21... Rfb8 {[%clk 0:02:10.7]} 22.
Bb4 {[%clk 0:01:50.8]} 22... Rd8 {[%clk 0:01:34.8]} 23. Be4 {[%clk 0:01:46.8]}
23... Bf6 {[%clk 0:01:22]} 24. Rxb3 {[%clk 0:01:45.1]} 24... Bxb3 {[%clk
0:01:22.9]} 25. Bd3 {[%clk 0:01:43.5]} 25... g6 {[%clk 0:01:19.3]} 26. Rb1
{[%clk 0:01:42.5]} 26... Ba2 {[%clk 0:01:19.2]} 27. Rc1 {[%clk 0:01:42]} 27...
Ra8 {[%clk 0:01:19]} 28. Be4 {[%clk 0:01:38.6]} 28... Rb8 {[%clk 0:01:15.2]} 29.
Rc7 {[%clk 0:01:34.8]} 29... h5 {[%clk 0:01:14]} 30. h4 {[%clk 0:01:33.9]} 30...
Bb2 {[%clk 0:01:11.2]} 31. Rc2 {[%clk 0:01:25.5]} 31... Bb1 {[%clk 0:01:11.2]}
32. Rc4 {[%clk 0:01:12.7]} 32... Bxe4 {[%clk 0:01:07.8]} 33. Rxe4 {[%clk
0:01:13.6]} 33... Ra8 {[%clk 0:01:05.5]} 34. Re3 {[%clk 0:01:13.9]} 34... Kg7
{[%clk 0:00:53.7]} 35. Rb3 {[%clk 0:01:11.4]} 35... Bf6 {[%clk 0:00:45.7]} 36.
e3 {[%clk 0:01:10]} 36... Ra7 {[%clk 0:00:43]} 37. Kf1 {[%clk 0:01:08.8]} 37...
Be7 {[%clk 0:00:43.5]} 38. Bxe7 {[%clk 0:00:57.7]} 38... Rxe7 {[%clk 0:00:44.4]}
39. a4 {[%clk 0:00:57.1]} 39... Ra7 {[%clk 0:00:44.6]} 40. Ra3 {[%clk
0:00:57.6]} 40... Ra5 {[%clk 0:00:43.8]} 41. Ke2 {[%clk 0:00:57.8]} 41... Kf6
{[%clk 0:00:44.2]} 42. Kd3 {[%clk 0:00:57.8]} 42... Kf5 {[%clk 0:00:44]} 43. f3
{[%clk 0:00:54.7]} 43... g5 {[%clk 0:00:38.5]} 44. hxg5 {[%clk 0:00:47.4]} 44...
Kxg5 {[%clk 0:00:38.8]} 45. Kc4 {[%clk 0:00:48]} 45... h4 {[%clk 0:00:38.8]} 46.
gxh4+ {[%clk 0:00:47.8]} 46... Kxh4 {[%clk 0:00:39]} 47. Kb4 {[%clk 0:00:48.2]}
47... Ra8 {[%clk 0:00:39.1]} 48. a5 {[%clk 0:00:48.4]} 48... Kg3 {[%clk
0:00:39.4]} 49. e4 {[%clk 0:00:49]} 49... Kf4 {[%clk 0:00:38.7]} 50. Kb5 {[%clk
0:00:49.1]} 50... f5 {[%clk 0:00:37.5]} 51. exf5 {[%clk 0:00:50]} 51... exf5
{[%clk 0:00:37.9]} 52. a6 {[%clk 0:00:50.1]} 52... Kg3 {[%clk 0:00:31]} 53. Kb6
{[%clk 0:00:48.7]} 53... f4 {[%clk 0:00:26.9]} 54. a7 {[%clk 0:00:49]} 54... Rh8
{[%clk 0:00:23.8]} 55. Kb7 {[%clk 0:00:46.1]} 55... Rh7+ {[%clk 0:00:21.9]} 56.
Ka6 {[%clk 0:00:45.1]} 56... Rh8 {[%clk 0:00:21.2]} 57. Rb3 {[%clk 0:00:43.2]}
57... Rh1 {[%clk 0:00:18.3]} 58. a8=Q {[%clk 0:00:41.2]} 58... Ra1+ {[%clk
0:00:17.3]} 59. Kb7 {[%clk 0:00:41.4]} 59... Rxa8 {[%clk 0:00:17.8]} 60. Kxa8
{[%clk 0:00:42.3]} 1-0

[Event "Late-Titled-Tuesday-Blitz-February-13-2024"]
[Site "Chess.com"]
[Date "2024.02.13"]
[Round "9"]
[White "Quattroporte300"]
[Black "igorknyazev"]
[Result "1-0"]
[WhiteElo "2419"]
[BlackElo "2202"]
[TimeControl "180+1"]
[EndTime "15:44:51 PST"]
[Termination "Quattroporte300 won by resignation"]

1. e4 {[%clk 0:03:00.9]} 1... e5 {[%clk 0:02:56.9]} 2. Nf3 {[%clk 0:03:00.4]}
2... Nf6 {[%clk 0:02:57.2]} 3. d4 {[%clk 0:03:01.3]} 3... Nxe4 {[%clk
0:02:56.8]} 4. Nxe5 {[%clk 0:02:59.3]} 4... d5 {[%clk 0:02:53]} 5. Bd3 {[%clk
0:02:57]} 5... Nd7 {[%clk 0:02:52.1]} 6. O-O {[%clk 0:02:52.4]} 6... Nxe5 {[%clk
0:02:50.7]} 7. dxe5 {[%clk 0:02:53.3]} 7... Nc5 {[%clk 0:02:49]} 8. Nc3 {[%clk
0:02:45.4]} 8... Be7 {[%clk 0:02:37.7]} 9. f4 {[%clk 0:02:43.9]} 9... Nxd3
{[%clk 0:02:34.8]} 10. Qxd3 {[%clk 0:02:42.9]} 10... Bc5+ {[%clk 0:02:29.9]} 11.
Kh1 {[%clk 0:02:41.1]} 11... c6 {[%clk 0:02:22.9]} 12. f5 {[%clk 0:02:40.7]}
12... Qh4 {[%clk 0:02:12.4]} 13. Bd2 {[%clk 0:02:26.5]} 13... Bd7 {[%clk
0:02:02.5]} 14. Rf4 {[%clk 0:02:19.9]} 14... Qh5 {[%clk 0:01:59.2]} 15. Na4
{[%clk 0:01:55.1]} 15... Be7 {[%clk 0:01:43.7]} 16. f6 {[%clk 0:01:53.2]} 16...
gxf6 {[%clk 0:01:40.9]} 17. exf6 {[%clk 0:01:54.1]} 17... Bd6 {[%clk 0:01:40.3]}
18. Re1+ {[%clk 0:01:53.6]} 18... Kd8 {[%clk 0:01:38.5]} 19. Qf3 {[%clk
0:01:22.1]} 19... Qh6 {[%clk 0:01:21.5]} 20. h3 {[%clk 0:01:05.7]} 20... Bxf4
{[%clk 0:01:20.1]} 21. Bxf4 {[%clk 0:01:06]} 21... Qg6 {[%clk 0:01:20.4]} 22.
Nc5 {[%clk 0:00:52.5]} 22... b6 {[%clk 0:01:06]} 23. Nb7+ {[%clk 0:00:50.1]}
23... Kc8 {[%clk 0:01:00.3]} 24. Nd6+ {[%clk 0:00:50.6]} 24... Kd8 {[%clk
0:01:01]} 25. Re7 {[%clk 0:00:26.3]} 25... Qxf6 {[%clk 0:00:19.5]} 26. Rxf7
{[%clk 0:00:24.6]} 26... Qe6 {[%clk 0:00:18.1]} 27. Rf6 {[%clk 0:00:13.9]} 27...
Qe1+ {[%clk 0:00:16.8]} 28. Kh2 {[%clk 0:00:13.5]} 28... Rg8 {[%clk 0:00:15.1]}
29. Nb7+ {[%clk 0:00:11.4]} 29... Kc8 {[%clk 0:00:15.1]} 30. Nd6+ {[%clk
0:00:12]} 30... Kd8 {[%clk 0:00:15.3]} 31. Rf7 {[%clk 0:00:10]} 31... Re8 {[%clk
0:00:10.1]} 32. Bg5+ {[%clk 0:00:08.9]} 32... Kc7 {[%clk 0:00:09.9]} 33. Nxe8+
{[%clk 0:00:09.4]} 33... Rxe8 {[%clk 0:00:09.5]} 34. Qf5 {[%clk 0:00:09.9]}
34... Qe5+ {[%clk 0:00:08.1]} 35. Qxe5+ {[%clk 0:00:09.9]} 35... Rxe5 {[%clk
0:00:09]} 36. Bf4 {[%clk 0:00:10.5]} 36... Kd6 {[%clk 0:00:07.8]} 37. Bxe5+
{[%clk 0:00:11.1]} 37... Kxe5 {[%clk 0:00:08.3]} 38. Rxd7 {[%clk 0:00:11.4]}
38... Kd4 {[%clk 0:00:08.8]} 39. Rxa7 {[%clk 0:00:11.4]} 39... c5 {[%clk
0:00:09.7]} 40. Rxh7 {[%clk 0:00:11.8]} 40... c4 {[%clk 0:00:10.6]} 41. Rb7
{[%clk 0:00:12.1]} 41... c3 {[%clk 0:00:11.5]} 42. bxc3+ {[%clk 0:00:12.5]}
42... Kxc3 {[%clk 0:00:11.4]} 43. Rxb6 {[%clk 0:00:13.4]} 43... d4 {[%clk
0:00:11.7]} 44. Rd6 {[%clk 0:00:13.7]} 44... Kxc2 {[%clk 0:00:12.6]} 45. Rxd4
{[%clk 0:00:13.3]} 45... Kc3 {[%clk 0:00:13.5]} 46. Rd8 {[%clk 0:00:12.8]} 46...
Kb2 {[%clk 0:00:14.4]} 47. h4 {[%clk 0:00:13.1]} 1-0

[Event "Late-Titled-Tuesday-Blitz-February-13-2024"]
[Site "Chess.com"]
[Date "2024.02.13"]
[Round "9"]
[White "MikeSailer"]
[Black "KorolDimitriy75"]
[Result "0-1"]
[WhiteElo "2210"]
[BlackElo "2426"]
[TimeControl "180+1"]
[EndTime "15:44:53 PST"]
[Termination "KorolDimitriy75 won on time"]

1. d4 {[%clk 0:02:59.4]} 1... Nf6 {[%clk 0:02:59.8]} 2. Nf3 {[%clk 0:02:58.6]}
2... g6 {[%clk 0:02:59.4]} 3. Bf4 {[%clk 0:02:58.3]} 3... c5 {[%clk 0:02:59.3]}
4. e3 {[%clk 0:02:58.6]} 4... Qb6 {[%clk 0:02:59.4]} 5. Nc3 {[%clk 0:02:55.2]}
5... Bg7 {[%clk 0:02:20]} 6. Rb1 {[%clk 0:02:17.6]} 6... O-O {[%clk 0:02:12.6]}
7. Be2 {[%clk 0:02:14.3]} 7... d5 {[%clk 0:02:07.1]} 8. O-O {[%clk 0:02:04.4]}
8... cxd4 {[%clk 0:02:07.2]} 9. exd4 {[%clk 0:02:03.3]} 9... Nc6 {[%clk
0:02:07.3]} 10. Nb5 {[%clk 0:01:57]} 10... Qd8 {[%clk 0:01:38.9]} 11. Nc7 {[%clk
0:01:41.1]} 11... Rb8 {[%clk 0:01:38.5]} 12. Nb5 {[%clk 0:01:28.9]} 12... Ra8
{[%clk 0:01:38.5]} 13. c3 {[%clk 0:01:25]} 13... Bf5 {[%clk 0:01:31.5]} 14. Rc1
{[%clk 0:01:23.8]} 14... a6 {[%clk 0:01:30.6]} 15. Na3 {[%clk 0:01:20.3]} 15...
b5 {[%clk 0:01:28.1]} 16. Nc2 {[%clk 0:01:20.6]} 16... Qb6 {[%clk 0:01:26.1]}
17. Ne3 {[%clk 0:01:20.2]} 17... Bd7 {[%clk 0:01:16.2]} 18. a3 {[%clk
0:01:17.5]} 18... Rfc8 {[%clk 0:01:15.3]} 19. h3 {[%clk 0:01:17]} 19... e6
{[%clk 0:01:06.8]} 20. Ne5 {[%clk 0:01:16.7]} 20... Be8 {[%clk 0:01:06.3]} 21.
Nxc6 {[%clk 0:01:15.9]} 21... Bxc6 {[%clk 0:01:05.4]} 22. Be5 {[%clk 0:01:16.5]}
22... a5 {[%clk 0:01:02.7]} 23. Ng4 {[%clk 0:00:49.3]} 23... Nxg4 {[%clk
0:01:00.6]} 24. Bxg7 {[%clk 0:00:49.1]} 24... Nxf2 {[%clk 0:00:46.9]} 25. Rxf2
{[%clk 0:00:49.6]} 25... Kxg7 {[%clk 0:00:47.1]} 26. Qd2 {[%clk 0:00:44.5]}
26... Be8 {[%clk 0:00:38.1]} 27. Rcf1 {[%clk 0:00:37.8]} 27... b4 {[%clk
0:00:28.1]} 28. axb4 {[%clk 0:00:30.6]} 28... axb4 {[%clk 0:00:28]} 29. h4
{[%clk 0:00:15]} 29... bxc3 {[%clk 0:00:26.5]} 30. bxc3 {[%clk 0:00:15.1]} 30...
h5 {[%clk 0:00:11.3]} 31. Bxh5 {[%clk 0:00:09.8]} 31... gxh5 {[%clk 0:00:09.2]}
32. Qg5+ {[%clk 0:00:07.3]} 32... Kf8 {[%clk 0:00:09.2]} 33. Qh6+ {[%clk
0:00:05.6]} 33... Ke7 {[%clk 0:00:09.3]} 34. Qg5+ {[%clk 0:00:05.9]} 34... Kd6
{[%clk 0:00:06.5]} 35. Qe5+ {[%clk 0:00:05.6]} 35... Kc6 {[%clk 0:00:06.9]} 36.
Rxf7 {[%clk 0:00:01.7]} 36... Bxf7 {[%clk 0:00:04.8]} 37. Rxf7 {[%clk
0:00:02.2]} 37... Re8 {[%clk 0:00:04.5]} 0-1

[Event "Late-Titled-Tuesday-Blitz-February-13-2024"]
[Site "Chess.com"]
[Date "2024.02.13"]
[Round "9"]
[White "YellowJacek"]
[Black "DraningWaterHi"]
[Result "0-1"]
[WhiteElo "2361"]
[BlackElo "2232"]
[TimeControl "180+1"]
[EndTime "15:44:53 PST"]
[Termination "DraningWaterHi won by resignation"]

1. e4 {[%clk 0:02:52.1]} 1... e5 {[%clk 0:02:59.6]} 2. Nf3 {[%clk 0:02:51.7]}
2... Nc6 {[%clk 0:02:59.4]} 3. Bb5 {[%clk 0:02:51.7]} 3... a6 {[%clk 0:02:59]}
4. Ba4 {[%clk 0:02:51.9]} 4... Nf6 {[%clk 0:02:58.1]} 5. O-O {[%clk 0:02:51.9]}
5... Be7 {[%clk 0:02:57.4]} 6. Re1 {[%clk 0:02:51.9]} 6... b5 {[%clk 0:02:57.2]}
7. Bb3 {[%clk 0:02:52.2]} 7... O-O {[%clk 0:02:57.8]} 8. a4 {[%clk 0:02:51.9]}
8... b4 {[%clk 0:02:56.2]} 9. c3 {[%clk 0:02:45.8]} 9... Bb7 {[%clk 0:02:55.1]}
10. d4 {[%clk 0:02:38.4]} 10... d6 {[%clk 0:02:51.9]} 11. Bc2 {[%clk 0:02:24.5]}
11... a5 {[%clk 0:02:51.1]} 12. d5 {[%clk 0:02:24.2]} 12... Nb8 {[%clk
0:02:51.1]} 13. c4 {[%clk 0:02:24.7]} 13... Nbd7 {[%clk 0:02:50.4]} 14. b3
{[%clk 0:02:25.1]} 14... Nc5 {[%clk 0:02:50.6]} 15. Nbd2 {[%clk 0:02:22.1]}
15... Re8 {[%clk 0:02:47.8]} 16. Nf1 {[%clk 0:02:22.2]} 16... Bf8 {[%clk
0:02:47.9]} 17. Ng3 {[%clk 0:02:22.5]} 17... g6 {[%clk 0:02:48.5]} 18. h3 {[%clk
0:02:20.1]} 18... Bg7 {[%clk 0:02:48]} 19. Bg5 {[%clk 0:02:14]} 19... h6 {[%clk
0:02:47.7]} 20. Be3 {[%clk 0:02:14.1]} 20... Bc8 {[%clk 0:02:41.8]} 21. Qd2
{[%clk 0:02:14.2]} 21... Kh7 {[%clk 0:02:39.9]} 22. Rac1 {[%clk 0:02:06.3]}
22... Nfd7 {[%clk 0:02:39.4]} 23. Rf1 {[%clk 0:01:59.2]} 23... Bb7 {[%clk
0:02:35.1]} 24. Kh2 {[%clk 0:01:59]} 24... Qe7 {[%clk 0:02:34.3]} 25. Ng1 {[%clk
0:01:58.2]} 25... Rf8 {[%clk 0:02:34.1]} 26. N1e2 {[%clk 0:01:58.4]} 26... Rad8
{[%clk 0:02:32.5]} 27. f4 {[%clk 0:01:43.2]} 27... exf4 {[%clk 0:02:31.6]} 28.
Nxf4 {[%clk 0:01:39.9]} 28... Ne5 {[%clk 0:02:30.7]} 29. Kh1 {[%clk 0:01:32.9]}
29... Ncd7 {[%clk 0:02:29.9]} 30. Nfe2 {[%clk 0:01:26.4]} 30... c5 {[%clk
0:02:28.3]} 31. dxc6 {[%clk 0:01:24.1]} 31... Nxc6 {[%clk 0:02:26.8]} 32. Nd4
{[%clk 0:01:21.1]} 32... Nxd4 {[%clk 0:02:25.6]} 33. Bxd4 {[%clk 0:01:22]} 33...
Bxd4 {[%clk 0:02:25.8]} 34. Qxd4 {[%clk 0:01:21.3]} 34... Qe5 {[%clk 0:02:26.2]}
35. Qxe5 {[%clk 0:01:15.9]} 35... dxe5 {[%clk 0:02:27.1]} 36. Rcd1 {[%clk
0:01:13.5]} 36... Kg7 {[%clk 0:02:26.8]} 37. Rd6 {[%clk 0:01:09.3]} 37... Nc5
{[%clk 0:02:26.8]} 38. Rfd1 {[%clk 0:01:09.3]} 38... Rxd6 {[%clk 0:02:23.7]} 39.
Rxd6 {[%clk 0:01:10.2]} 39... Rc8 {[%clk 0:02:22.3]} 40. Kg1 {[%clk 0:01:08]}
40... Kf8 {[%clk 0:02:22]} 41. Kf2 {[%clk 0:01:05.9]} 41... Ke7 {[%clk
0:02:21.8]} 42. Rd2 {[%clk 0:01:04.3]} 42... h5 {[%clk 0:02:20]} 43. Ke3 {[%clk
0:01:03.4]} 43... Rd8 {[%clk 0:02:19.5]} 44. Rxd8 {[%clk 0:01:02.4]} 44... Kxd8
{[%clk 0:02:20.4]} 45. Nf1 {[%clk 0:00:59.5]} 45... Ke7 {[%clk 0:02:19.9]} 46.
Nd2 {[%clk 0:00:59.6]} 46... h4 {[%clk 0:02:19.8]} 47. Nf3 {[%clk 0:00:59.6]}
47... Kf6 {[%clk 0:02:17.1]} 48. Nxh4 {[%clk 0:00:59.3]} 48... Ne6 {[%clk
0:02:16.5]} 49. Nf3 {[%clk 0:00:54.8]} 49... Nf4 {[%clk 0:02:12.9]} 50. Ne1
{[%clk 0:00:54.7]} 50... g5 {[%clk 0:02:11.6]} 51. Bd1 {[%clk 0:00:50.4]} 51...
Ne6 {[%clk 0:02:11]} 52. Nd3 {[%clk 0:00:47.2]} 52... Bc6 {[%clk 0:02:04.4]} 53.
g3 {[%clk 0:00:47.1]} 53... Nd4 {[%clk 0:02:03]} 54. h4 {[%clk 0:00:37.9]} 54...
gxh4 {[%clk 0:02:03]} 55. gxh4 {[%clk 0:00:38.2]} 55... Ke7 {[%clk 0:02:01.5]}
56. h5 {[%clk 0:00:38.2]} 56... f6 {[%clk 0:02:02]} 57. Nc5 {[%clk 0:00:33.2]}
57... Kf7 {[%clk 0:01:56.8]} 58. Bg4 {[%clk 0:00:32.8]} 58... Kg7 {[%clk
0:01:53.6]} 59. Ne6+ {[%clk 0:00:27.9]} 59... Nxe6 {[%clk 0:01:53.1]} 60. Bxe6
{[%clk 0:00:28.8]} 60... Kh6 {[%clk 0:01:53.3]} 61. Bd5 {[%clk 0:00:19.5]} 61...
Bd7 {[%clk 0:01:53.3]} 62. c5 {[%clk 0:00:19.8]} 62... Kxh5 {[%clk 0:01:53.3]}
63. c6 {[%clk 0:00:20.4]} 63... Bc8 {[%clk 0:01:53.1]} 64. Kd3 {[%clk
0:00:17.4]} 64... Kg4 {[%clk 0:01:52.8]} 65. Kc4 {[%clk 0:00:17.9]} 65... f5
{[%clk 0:01:53.1]} 66. exf5 {[%clk 0:00:17.8]} 66... Kxf5 {[%clk 0:01:52.3]} 67.
Kc5 {[%clk 0:00:17.3]} 67... e4 {[%clk 0:01:52.3]} 68. Kb6 {[%clk 0:00:16.6]}
68... e3 {[%clk 0:01:52.7]} 69. Bc4 {[%clk 0:00:15.8]} 69... Ke5 {[%clk
0:01:43.9]} 70. Kxa5 {[%clk 0:00:15.5]} 70... Kd6 {[%clk 0:01:42.9]} 71. Kb6
{[%clk 0:00:15.8]} 71... Be6 {[%clk 0:01:40.2]} 72. Be2 {[%clk 0:00:14.8]} 72...
Bxb3 {[%clk 0:01:40.1]} 73. a5 {[%clk 0:00:15.4]} 73... Be6 {[%clk 0:01:38.2]}
74. a6 {[%clk 0:00:14.4]} 74... b3 {[%clk 0:01:38.6]} 75. a7 {[%clk 0:00:14.9]}
75... b2 {[%clk 0:01:39.1]} 76. Bd3 {[%clk 0:00:14.1]} 76... e2 {[%clk 0:01:38]}
77. a8=Q {[%clk 0:00:14.1]} 77... e1=Q {[%clk 0:01:38.3]} 78. Qd8+ {[%clk
0:00:14.1]} 78... Ke5 {[%clk 0:01:37.5]} 79. c7 {[%clk 0:00:14.3]} 79... Qb4+
{[%clk 0:01:36.1]} 80. Bb5 {[%clk 0:00:14.6]} 80... b1=Q {[%clk 0:01:31.6]} 81.
Qg5+ {[%clk 0:00:14.6]} 81... Kd4 {[%clk 0:01:29.9]} 82. Qf4+ {[%clk 0:00:14.2]}
82... Kc3 {[%clk 0:01:29.8]} 83. Qe3+ {[%clk 0:00:13.2]} 83... Kb2 {[%clk
0:01:30]} 84. Qd2+ {[%clk 0:00:12.6]} 84... Qxd2 {[%clk 0:01:29.5]} 0-1

[Event "Late-Titled-Tuesday-Blitz-February-13-2024"]
[Site "Chess.com"]
[Date "2024.02.13"]
[Round "9"]
[White "dennisodessa"]
[Black "DanylaBagrov"]
[Result "1-0"]
[WhiteElo "2586"]
[BlackElo "2555"]
[TimeControl "180+1"]
[EndTime "15:44:55 PST"]
[Termination "dennisodessa won on time"]

1. d4 {[%clk 0:02:59.4]} 1... f5 {[%clk 0:02:55]} 2. c4 {[%clk 0:02:59.2]} 2...
Nf6 {[%clk 0:02:55.3]} 3. Bg5 {[%clk 0:02:58.5]} 3... Ne4 {[%clk 0:02:53]} 4.
Bf4 {[%clk 0:02:56.9]} 4... d6 {[%clk 0:02:51.1]} 5. f3 {[%clk 0:02:55.2]} 5...
Nf6 {[%clk 0:02:43.4]} 6. Nc3 {[%clk 0:02:53.6]} 6... g6 {[%clk 0:02:43.5]} 7.
e4 {[%clk 0:02:46.6]} 7... Bg7 {[%clk 0:02:43.5]} 8. exf5 {[%clk 0:02:34]} 8...
Bxf5 {[%clk 0:02:40.4]} 9. Nge2 {[%clk 0:02:26]} 9... Nc6 {[%clk 0:02:22.6]} 10.
Ng3 {[%clk 0:02:25.5]} 10... e5 {[%clk 0:01:54.9]} 11. dxe5 {[%clk 0:02:18.7]}
11... dxe5 {[%clk 0:01:55.8]} 12. Qxd8+ {[%clk 0:02:15]} 12... Rxd8 {[%clk
0:01:56.7]} 13. Bg5 {[%clk 0:02:08.4]} 13... Nd4 {[%clk 0:01:55.3]} 14. O-O-O
{[%clk 0:02:07.4]} 14... O-O {[%clk 0:01:46.2]} 15. Nxf5 {[%clk 0:01:48.1]}
15... gxf5 {[%clk 0:01:40.7]} 16. Bd3 {[%clk 0:01:46.1]} 16... c6 {[%clk
0:01:36.2]} 17. Bb1 {[%clk 0:01:41.9]} 17... Rd7 {[%clk 0:01:29]} 18. Rhe1
{[%clk 0:01:42.1]} 18... Re8 {[%clk 0:01:22.5]} 19. Ne2 {[%clk 0:01:37.2]} 19...
c5 {[%clk 0:01:15.2]} 20. Nxd4 {[%clk 0:01:32.6]} 20... cxd4 {[%clk 0:01:12.2]}
21. Bxf5 {[%clk 0:01:32.2]} 21... Rc7 {[%clk 0:01:12.9]} 22. b3 {[%clk 0:01:25]}
22... Nd5 {[%clk 0:01:13.5]} 23. Bd2 {[%clk 0:01:16.8]} 23... b5 {[%clk
0:01:03.1]} 24. Bd3 {[%clk 0:01:12.3]} 24... Nb6 {[%clk 0:00:58.4]} 25. Ba5
{[%clk 0:01:12.3]} 25... Bh6+ {[%clk 0:00:44.9]} 26. Kb1 {[%clk 0:01:09.9]}
26... bxc4 {[%clk 0:00:28.9]} 27. Bxc4+ {[%clk 0:01:05.8]} 27... Rxc4 {[%clk
0:00:28.7]} 28. Bxb6 {[%clk 0:00:52.8]} 28... Rcc8 {[%clk 0:00:20.6]} 29. Bxa7
{[%clk 0:00:49.8]} 29... Be3 {[%clk 0:00:20.5]} 30. Bb6 {[%clk 0:00:47.9]} 30...
Rc6 {[%clk 0:00:17]} 31. Ba5 {[%clk 0:00:47.8]} 31... Ra8 {[%clk 0:00:17.5]} 32.
Bd2 {[%clk 0:00:47.8]} 32... Rca6 {[%clk 0:00:15.2]} 33. Bxe3 {[%clk 0:00:46.5]}
33... Rxa2 {[%clk 0:00:12.5]} 34. Bc1 {[%clk 0:00:42.5]} 34... Ra1+ {[%clk
0:00:09.2]} 35. Kc2 {[%clk 0:00:43.1]} 35... R8a2+ {[%clk 0:00:09.8]} 36. Kd3
{[%clk 0:00:43.7]} 36... Rxg2 {[%clk 0:00:09.4]} 37. Rxe5 {[%clk 0:00:39.2]}
37... Rxh2 {[%clk 0:00:08.7]} 38. Kxd4 {[%clk 0:00:32.9]} 38... Rf2 {[%clk
0:00:04.6]} 39. Rf5 {[%clk 0:00:23]} 39... h6 {[%clk 0:00:02.8]} 40. Rg1+ {[%clk
0:00:20.4]} 40... Kh8 {[%clk 0:00:02.5]} 41. Rf8+ {[%clk 0:00:18.7]} 41... Kh7
{[%clk 0:00:02.6]} 42. Rf7+ {[%clk 0:00:19.2]} 42... Kh8 {[%clk 0:00:03.3]} 43.
Be3 {[%clk 0:00:14.1]} 1-0

[Event "Late-Titled-Tuesday-Blitz-February-13-2024"]
[Site "Chess.com"]
[Date "2024.02.13"]
[Round "9"]
[White "tarno17"]
[Black "SmirnovTimofey2000"]
[Result "1-0"]
[WhiteElo "2119"]
[BlackElo "1959"]
[TimeControl "180+1"]
[EndTime "15:44:59 PST"]
[Termination "tarno17 won by resignation"]

1. e4 {[%clk 0:03:00.9]} 1... e5 {[%clk 0:02:59.5]} 2. Nf3 {[%clk 0:03:00.9]}
2... Nf6 {[%clk 0:02:59.9]} 3. Nxe5 {[%clk 0:03:00.8]} 3... d6 {[%clk
0:02:59.8]} 4. Nf3 {[%clk 0:03:01]} 4... Nxe4 {[%clk 0:03:00.2]} 5. d3 {[%clk
0:03:01.7]} 5... Nf6 {[%clk 0:02:59.6]} 6. d4 {[%clk 0:03:02.4]} 6... d5 {[%clk
0:03:00]} 7. Bd3 {[%clk 0:03:03.1]} 7... Bd6 {[%clk 0:02:59.2]} 8. O-O {[%clk
0:03:03.8]} 8... O-O {[%clk 0:02:58.6]} 9. h3 {[%clk 0:03:04.4]} 9... h6 {[%clk
0:02:58.3]} 10. Re1 {[%clk 0:03:03.9]} 10... Re8 {[%clk 0:02:57.4]} 11. Nbd2
{[%clk 0:03:01.7]} 11... Nbd7 {[%clk 0:02:55.8]} 12. Nf1 {[%clk 0:03:00.9]}
12... Ne4 {[%clk 0:02:40.5]} 13. Ne3 {[%clk 0:02:47.2]} 13... Ndf6 {[%clk
0:02:38.8]} 14. Nxd5 {[%clk 0:02:22.4]} 14... c6 {[%clk 0:02:15.8]} 15. Nxf6+
{[%clk 0:02:19.2]} 15... Nxf6 {[%clk 0:02:16.7]} 16. c3 {[%clk 0:02:10.2]} 16...
b5 {[%clk 0:02:02.5]} 17. Bc2 {[%clk 0:02:06.6]} 17... Be6 {[%clk 0:01:52.3]}
18. b3 {[%clk 0:01:34.1]} 18... Qc7 {[%clk 0:01:44.2]} 19. Qd3 {[%clk 0:01:17]}
19... Bf4 {[%clk 0:01:26.8]} 20. Bxf4 {[%clk 0:01:15.9]} 20... Qxf4 {[%clk
0:01:27.7]} 21. Re5 {[%clk 0:01:09.6]} 21... Bd5 {[%clk 0:01:12.2]} 22. Rae1
{[%clk 0:01:01.7]} 22... Be4 {[%clk 0:00:54.6]} 23. R5xe4 {[%clk 0:00:40.7]}
23... Nxe4 {[%clk 0:00:53.7]} 24. Rxe4 {[%clk 0:00:41.6]} 24... Rxe4 {[%clk
0:00:53.3]} 25. Qxe4 {[%clk 0:00:42.1]} 25... Qxe4 {[%clk 0:00:41.3]} 26. Bxe4
{[%clk 0:00:42.1]} 26... Rc8 {[%clk 0:00:41.3]} 27. Nd2 {[%clk 0:00:31.9]} 27...
g6 {[%clk 0:00:39.6]} 28. g4 {[%clk 0:00:29.9]} 28... Kg7 {[%clk 0:00:38.3]} 29.
f4 {[%clk 0:00:28.7]} 29... c5 {[%clk 0:00:36.1]} 30. d5 {[%clk 0:00:28]} 30...
Re8 {[%clk 0:00:29.6]} 31. Kf2 {[%clk 0:00:26.2]} 31... c4 {[%clk 0:00:24.4]}
32. bxc4 {[%clk 0:00:25]} 32... bxc4 {[%clk 0:00:25.3]} 33. Kf3 {[%clk
0:00:23.4]} 33... Rc8 {[%clk 0:00:23.7]} 34. Ke3 {[%clk 0:00:22.7]} 34... Re8
{[%clk 0:00:19.8]} 35. Kd4 {[%clk 0:00:22.6]} 35... f5 {[%clk 0:00:16.1]} 36.
gxf5 {[%clk 0:00:21.6]} 36... gxf5 {[%clk 0:00:17]} 37. Bxf5 {[%clk 0:00:20.6]}
37... Rf8 {[%clk 0:00:17.5]} 38. Be4 {[%clk 0:00:19.3]} 38... Rxf4 {[%clk
0:00:17.4]} 39. Nxc4 {[%clk 0:00:19.9]} 39... Rh4 {[%clk 0:00:16.8]} 40. d6
{[%clk 0:00:19.8]} 40... Kf6 {[%clk 0:00:15.5]} 41. Kd5 {[%clk 0:00:17.7]} 41...
Rxh3 {[%clk 0:00:11.5]} 42. Kd4 {[%clk 0:00:11.8]} 42... Rh4 {[%clk 0:00:11.1]}
43. Ne3 {[%clk 0:00:08.7]} 43... Ke6 {[%clk 0:00:09.6]} 44. c4 {[%clk
0:00:09.4]} 44... Kxd6 {[%clk 0:00:09.5]} 45. Nf5+ {[%clk 0:00:09.5]} 45... Kc7
{[%clk 0:00:07.7]} 46. Nxh4 {[%clk 0:00:10.4]} 1-0